Cogmind - Beta 17.1 @@@ ROGUE MODE // 2026.09.13 @ 19:07:04 Player: erfael Result: Destroyed by S-27 Virus with Autogun Performance ------------- Evolutions (6) 3000 Regions Visited (9) 1800 Robots Destroyed (44) 220 Value Destroyed (1339) 1339 Prototype IDs (25) 500 Alien Tech Used (0) 0 Bonus (506) 506 TOTAL SCORE: 7365 Bonus ------- Follower Combat Kills 206 Aligned with FarCom 300 Cogmind --------- Core Integrity 0/1150 Matter 300/300 Energy 98/100 System Corruption 0% Temperature Cool (0) Movement Core (50) Location -4/Factory Parts ------- > --- POWER (2) -------- (None) > --- PROPULSION (5) --- (None) > --- UTILITY (8) ------ (None) > --- WEAPON (4) ------- (None) > --- INVENTORY (5) ---- Neutrino Core Large Storage Unit Machine Analyzer Peak State ------------ > --- POWER ------------ Ion Engine Ion Engine > --- PROPULSION ------- Aluminum Leg Aluminum Leg Improved Titanium Leg Improved Titanium Leg > --- UTILITY ---------- Large Storage Unit Matter Compressor Advanced Terrain Scan Processor Light Armor Plating Improved Medium Armor Plating > --- WEAPON ----------- Arc Projector Proton Cannon Gauss Rifle Gauss Rifle > --- INVENTORY -------- Armored Treads Aluminum Leg Machine Analyzer Seismic Detector Seismic Detector Improved Light Armor Plating Deploy-a-Sentry Deploy-a-Sentry Deploy-a-Sentry [Rating: 47] Favorites ----------- Power Light Ion Engine Engine Light Ion Engine Power Core Neutrino Core Propulsion Aluminum Leg Leg Aluminum Leg Utility Large Storage Unit Device Seismic Detector Storage Large Storage Unit Processor Advanced Terrain Scan Processor Protection Improved Medium Armor Plating Weapon Light Assault Rifle Energy Gun Small Laser Energy Cannon Proton Cannon Ballistic Gun Light Assault Rifle Ballistic Cannon Flak Cannon Impact Weapon Hammer Slashing Weapon Axe Build | -11 -10 -10 -10 -9 -8 -7 -6 -5 -4 ------- Run | Yrd Mat Min Exi Min Mat Fac Fac Fac Fac Slots Evolved 12 | . . . . . 4 2 2 2 2 Power 1 | . . . . . . 1 . . . Propulsion 3 | . . . . . 2 1 . . . Utility 6 | . . . . . 2 . 1 1 2 Weapon 2 | . . . . . . . 1 1 . Parts Attached 48 | 7 11 . 1 4 6 3 7 6 3 Power 8 | 1 3 . . . . . 1 . 3 Engine 5 | 1 3 . . . . . 1 . . Core 3 | . . . . . . . . . 3 Reactor . | . . . . . . . . . . Propulsion 10 | 2 2 . . 1 2 1 1 1 . Treads . | . . . . . . . . . . Leg 10 | 2 2 . . 1 2 1 1 1 . Wheel . | . . . . . . . . . . Hover . | . . . . . . . . . . Flight . | . . . . . . . . . . Utility 14 | 2 2 . 1 1 3 1 2 2 . Device 5 | 1 1 . . 1 1 1 . . . Storage 4 | 1 1 . 1 . . . . 1 . Processor 3 | . . . . . 1 . 1 1 . Hackware . | . . . . . . . . . . Protection 2 | . . . . . 1 . 1 . . Artifact . | . . . . . . . . . . Weapon 16 | 2 4 . . 2 1 1 3 3 . Energy Gun 7 | 2 2 . . . . . 1 2 . Energy Cannon 1 | . . . . . . . 1 . . Ballistic Gun 4 | . 1 . . 1 . . 1 1 . Ballistic Cannon 2 | . . . . 1 1 . . . . Launcher . | . . . . . . . . . . Special Weapon . | . . . . . . . . . . Impact Weapon 1 | . 1 . . . . . . . . Slashing Weapon 1 | . . . . . . 1 . . . Piercing Weapon . | . . . . . . . . . . Special Melee Weapon . | . . . . . . . . . . Unidentified Prototypes . | . . . . . . . . . . Parts Lost 24 | . 1 . . 2 1 . 4 14 2 Power 5 | . . . . . . . 1 2 2 Propulsion 7 | . . . . . 1 . 2 4 . Utility 5 | . 1 . . 1 . . . 3 . Weapon 7 | . . . . 1 . . 1 5 . Highest Loss Streak 9 | . 1 . . 1 1 . 1 9 1 To Critical Strikes . | . . . . . . . . . . Average Backups 10 | 3 12 15 13 11 9 10 11 6 2 Power 1 | . 2 2 2 2 2 1 . . . Propulsion 2 | . 3 3 2 3 2 2 2 1 . Utility 4 | 1 4 6 5 4 2 3 5 3 2 Weapon 2 | . 2 4 3 2 2 3 3 . . Tool/Special . | . . . . . . . . . . Unused Backups 10 | . 3 . 1 . . 1 1 3 1 Power 1 | . 1 . . . . . . . . Propulsion 2 | . 1 . . . . . . 1 . Utility 4 | . . . 1 . . . . 2 1 Weapon 3 | . 1 . . . . 1 1 . . Tool/Special . | . . . . . . . . . . Average Slot Usage (%) 83 | . 99 100 100 97 94 99 91 40 1 Engine 11 | . 14 14 14 14 9 15 12 5 . Leg 25 | . 27 28 28 28 35 37 28 11 . Device 10 | . 13 14 14 12 8 9 13 1 . Storage 9 | . 14 14 14 14 9 7 6 3 . Processor 2 | . . . . . 6 7 6 4 . Protection 1 | . . . . . 8 4 4 2 . Energy Gun 7 | . 19 . . . . . 3 3 . Ballistic Gun 6 | . 7 14 14 14 7 . 1 2 . Ballistic Cannon 2 | . . . . 9 8 7 4 . . Impact Weapon 2 | . 1 14 14 2 1 6 . . . Peak Build Rating 47 | 8 9 9 10 12 20 31 45 47 6 Average Rating 18 | 5 8 9 9 11 17 24 40 24 2 On Entrance 13 | . 8 9 9 10 9 20 31 39 . Avg Prop Armor Cover (%) . | . . . . . . . . . . Naked Turns 274 | . . . . . . . . 131 143 Heaviest Build 57 | 13 28 27 27 28 35 40 57 54 14 Greatest Support 70 | 20 20 20 20 20 40 60 70 60 3 Greatest Overweight (x) 9 | . 2 1 1 1 1 . . 9 4 Average Overweight (x) . | . . 1 1 1 . . . . . Largest Inventory Capacity 15 | 8 15 15 15 15 15 15 15 15 5 Average Capacity 13 | 7 14 15 15 15 15 15 15 10 5 Most Carried 15 | 6 15 15 15 15 14 15 15 15 3 Average Carried 12 | 3 12 15 14 14 12 13 14 8 2 Final Capacity 15 | 8 15 15 15 15 15 15 15 5 5 Final Carried 15 | 6 15 15 15 15 14 15 15 2 3 Class Distribution -------------------- 36% | Mutant 22% | Scavenger-Mutant 13% | Scavenger-Skirmisher 12% | Scavenger-Assassin 8% | Assassin 7% | Skirmisher Dominant Class ---------------- Scavenger-Mutant | -10/Materials Mutant | -10/Mines Mutant | -10/Exiles Scavenger-Skirmisher | -9/Mines Scavenger-Skirmisher | -8/Materials Scavenger-Assassin | -7/Factory Scavenger-Skirmisher | -6/Factory Mutant | -5/Factory Mutant | -4/Factory Resources | -11 -10 -10 -10 -9 -8 -7 -6 -5 -4 ----------- Run | Yrd Mat Min Exi Min Mat Fac Fac Fac Fac Matter Collected 1380 | 270 159 . . 93 95 36 361 366 . Remotely . | . . . . . . . . . . Salvage Created 1639 | 170 396 . . 83 97 36 491 366 . Parts 96 | 21 33 . . 3 2 2 18 17 . Haulers Intercepted . | . . . . . . . . . . Recyclers Shooed 2 | 1 . . . 1 . . . . . Parts Field Recycled . | . . . . . . . . . . Retrieved Matter . | . . . . . . . . . . Parts Self-Destructed . | . . . . . . . . . . Prevented . | . . . . . . . . . . Parts Restored . | . . . . . . . . . . Kills | -11 -10 -10 -10 -9 -8 -7 -6 -5 -4 ------- Run | Yrd Mat Min Exi Min Mat Fac Fac Fac Fac Combat Hostiles Destroyed 31 | . 13 . . 2 2 . 9 5 . Guns 22 | . 13 . . 2 . . 4 3 . Cannons 6 | . . . . . 2 . 4 . . AOE 1 | . . . . . . . . 1 . Classes Destroyed 11 | 2 5 . . 1 . . 3 . . Worker 3 | . 2 . . . . . . 1 . Builder 1 | . 1 . . . . . . . . Tunneler 5 | 5 . . . . . . . . . Recycler 1 | 1 . . . . . . . . . Mechanic 3 | . 1 . . . . 1 1 . . Swarmer 9 | . 9 . . . . . . . . Grunt 14 | . 4 . . 1 2 . 5 2 . Brawler 1 | . . . . . . . 1 . . Duelist 1 | . . . . 1 . . . . . Sentry 3 | . . . . . . . 2 1 . Programmer 3 | . . . . . . . 1 2 . Best Kill Streak 4 | 2 4 . . 2 2 1 4 2 . Combat Bots Only 3 | . 3 . . 2 2 . 3 2 . Max Kills in Single Turn 2 | 1 2 . . 1 1 1 2 2 . Gunslinging 1 | . 1 . . . . . . . . Exploded 1 | . . . . . . . . 1 . Melee . | . . . . . . . . . . Uniques/NPCs Destroyed . | . . . . . . . . . . Combat | -11 -10 -10 -10 -9 -8 -7 -6 -5 -4 -------- Run | Yrd Mat Min Exi Min Mat Fac Fac Fac Fac Hostile Shots Fired 501 | . 94 . . 23 9 . 117 109 149 Missed 167 | . 23 . . 6 4 . 47 25 62 Hits 334 | . 71 . . 17 5 . 70 84 87 Melee 13 | . . . . 13 . . . . . Projectile 321 | . 71 . . 4 5 . 70 84 87 AOE 1 | . . . . . . . . 1 . Critical Strikes 11 | . . . . 1 . . . 8 2 Part Disruptions 1 | . . . . . . . 1 . . Damage Taken 5508 | . 672 . . 415 82 . 1179 1770 1390 Core 2157 | . 164 . . 81 . . 134 623 1155 Absorbed by Shields . | . . . . . . . . . . Regen/Repaired (Parts) 396 | . 190 . . . 118 72 16 . . Core Remaining (%) 70 | 100 . . . 2 100 100 84 37 . Volleys Fired 164 | 24 46 . . 17 6 . 29 42 . Largest 4 | 2 2 . . 2 2 . 3 4 . Hottest 186 | 80 105 . . 50 50 . 167 186 . Shots Fired 330 | 48 91 . . 23 12 . 84 72 . Gun 275 | 48 91 . . 20 6 . 51 59 . Cannon 55 | . . . . 3 6 . 33 13 . Launcher . | . . . . . . . . . . Special . | . . . . . . . . . . Kinetic 131 | . 10 . . 23 12 . 50 36 . Thermal 139 | 48 81 . . . . . . 10 . Explosive . | . . . . . . . . . . Electromagnetic 60 | . . . . . . . 34 26 . Robot Hit Streak 12 | 9 12 . . 10 7 . 10 11 . Robot Miss Streak 8 | 3 6 . . 1 2 . 8 2 . Penetration Max 1 | . . . . . . . 1 . . Secondary Targets 3 | . 3 . . . . . . . . Max Gunslinging Chain 1 | . 1 . . . . . . . . Shots Hit Robots 218 | 27 55 . . 20 8 1 58 49 . Core Hits 90 | 7 22 . . 6 4 . 39 12 . Critical Kills . | . . . . . . . . . . Critical Parts Destroyed . | . . . . . . . . . . Critical Strikes 2 | . 1 . . . 1 . . . . Burn 1 | . 1 . . . . . . . . Blast 1 | . . . . . 1 . . . . Melee Attacks 20 | . 7 . . . 1 1 11 . . Impact 9 | . 7 . . . 1 1 . . . Slashing 11 | . . . . . . . 11 . . Piercing . | . . . . . . . . . . Sneak Attacks 1 | . . . . . . 1 . . . Combat Hostiles . | . . . . . . . . . . Follow-up Attacks . | . . . . . . . . . . Damage Inflicted 3855 | 297 647 . . 176 118 69 1426 1076 46 Guns 2413 | 297 647 . . 157 44 . 510 758 . Cannons 1028 | . . . . 19 74 . 684 251 . Explosions 299 | . . . . . . . 232 67 . Melee 69 | . . . . . . 69 . . . Ramming 46 | . . . . . . . . . 46 Kinetic 1745 | . 53 . . 176 118 . 893 505 . Thermal 1216 | 297 594 . . . . . 147 178 . Explosive 85 | . . . . . . . 85 . . Electromagnetic 694 | . . . . . . . 301 393 . Impact 69 | . . . . . . 69 . . . Slashing . | . . . . . . . . . . Piercing . | . . . . . . . . . . Highest Corruption 18 | . . . . 5 . . 5 18 . Average Corruption 8 | . . . . 5 . . 3 15 . Corruption Purged . | . . . . . . . . . . Corruption Blocked . | . . . . . . . . . . Effects 36 | . . . . 1 . . 13 22 . Message Errors 8 | . . . . . . . 3 5 . Matter Fused 6 | . . . . . . . 3 3 . Heat Flow Errors 7 | . . . . 1 . . 3 3 . Energy Discharges 5 | . . . . . . . 2 3 . Parts Rejected 1 | . . . . . . . . 1 . Data Loss (minor) 3 | . . . . . . . . 3 . Data Loss (major) 4 | . . . . . . . 2 2 . Misfires 1 | . . . . . . . . 1 . Misdirections 1 | . . . . . . . . 1 . Overload Shots . | . . . . . . . . . . Overflow Damage 222 | . . . . . . 44 166 12 . Projectiles 12 | . . . . . . . . 12 . Explosions 166 | . . . . . . . 166 . . Melee 44 | . . . . . . 44 . . . Knockbacks 14 | . . . . . . . 14 . . Impact . | . . . . . . . . . . Kinetic 13 | . . . . . . . 13 . . Secondary 1 | . . . . . . . 1 . . Self-Inflicted Damage 225 | . . . . . . . 184 23 18 Shots 3 | . . . . . . . 2 1 . Rammed 14 | . . . . . . . . . 14 Targets Rammed 14 | . . . . . . . . . 14 Kicked . | . . . . . . . . . . Crushed . | . . . . . . . . . . Highest Temperature 470 | 234 270 . . 208 17 . 167 470 . Average Temperature 80 | 78 77 . . 76 6 . 39 121 . Received Heat Transfer 474 | . 153 . . 24 36 . 108 144 9 Effects 3 | . . . . . . . . 3 . Shutdowns 1 | . . . . . . . . 1 . Energy Bleed 1 | . . . . . . . . 1 . Damage (minor) 1 | . . . . . . . . 1 . Siege Activations . | . . . . . . . . . . Martial Activations . | . . . . . . . . . . Shielding Activations . | . . . . . . . . . . Robots Disrupted 2 | . . . . . . . 2 . . Combat Hostiles 2 | . . . . . . . 2 . . Robots Corrupted 2 | . . . . . . . 1 1 . Combat Hostiles 2 | . . . . . . . 1 1 . Parts Fried 2 | . . . . . . . 1 1 . Impact Corruptions 1 | . . . . . . 1 . . . Robots Melted . | . . . . . . . . . . Combat Hostiles . | . . . . . . . . . . Parts Melted 3 | 1 2 . . . . . . . . Heat Transferred 2442 | 675 1445 . . . . . 100 222 . Parts Sabotaged . | . . . . . . . . . . Parts Stolen . | . . . . . . . . . . Parts Stripped . | . . . . . . . . . . Power Chain Reactions 2 | . . . . . . . 1 1 . Alert | -11 -10 -10 -10 -9 -8 -7 -6 -5 -4 ------- Run | Yrd Mat Min Exi Min Mat Fac Fac Fac Fac Maximum Alert Level . | . . . . . . . . . . Low Security (%) 100 | 100 100 100 . 100 100 100 100 100 100 Level 1 . | . . . . . . . . . . Level 2 . | . . . . . . . . . . Level 3 . | . . . . . . . . . . Level 4 . | . . . . . . . . . . Level 5 . | . . . . . . . . . . High Security . | . . . . . . . . . . Max Security . | . . . . . . . . . . Peak Influence 128 | 5 97 18 . 40 30 5 128 95 36 Initial 36 | . . 18 . . . . . . 36 Average 20 | 1 23 7 . 4 4 . 52 8 8 Influence Increases 1257 | 30 395 . . 50 41 8 380 338 15 Destroy 0b10 Robot/C 720 | . 260 . . 40 40 . 180 200 . Destroy 0b10 Robot/NC 65 | 30 20 . . . . 5 5 5 . Destroy Leader 140 | . 50 . . 10 . . 50 30 . Allied During Kill 11 | . . . . . . . . 11 . Successful Hack 16 | . . . . . . 3 . 13 . Disable Machine 75 | . . . . . . . 60 15 . Destroy Structure 80 | . 5 . . . 1 . 70 4 . Lose Combat Pursuer 150 | . 60 . . . . . 15 60 15 Influence Decreases 1257 | 30 346 49 . 50 41 8 380 263 90 Entered New Map 70 | . . 31 . . . . . . 39 Time Decay 1017 | 30 336 18 . 50 31 8 340 153 51 Lost Part 114 | . 10 . . . 10 . 40 54 . Lost Ally 56 | . . . . . . . . 56 . Squads Dispatched 12 | . 3 . . . . . 5 3 1 Investigation 2 | . 1 . . . . . . 1 . Extermination 4 | . . . . . . . 2 2 . Reinforcement 6 | . 2 . . . . . 3 . 1 Assault . | . . . . . . . . . . Garrison . | . . . . . . . . . . Intercept . | . . . . . . . . . . Searches Triggered . | . . . . . . . . . . Construction Impeded . | . . . . . . . . . . Haulers Reinforced . | . . . . . . . . . . Active Scanning Responses . | . . . . . . . . . . Cargo Convoy Interrupts . | . . . . . . . . . . Stealth | -11 -10 -10 -10 -9 -8 -7 -6 -5 -4 --------- Run | Yrd Mat Min Exi Min Mat Fac Fac Fac Fac Distress Signals 6 | . . . . . 2 . . 1 3 Communications Jammed . | . . . . . . . . . . Distress Signals . | . . . . . . . . . . Times Spotted 83 | . 28 . . 6 5 . 13 16 15 Peak Tracking Total 13 | . 3 . . 2 3 . 3 7 13 Tactical Retreats 9 | . 3 . . . . . 1 4 1 Traps | -11 -10 -10 -10 -9 -8 -7 -6 -5 -4 ------- Run | Yrd Mat Min Exi Min Mat Fac Fac Fac Fac Traps Triggered 8 | . 1 . . . . . 3 4 . Indirectly . | . . . . . . . . . . Trap Hack Attempts . | . . . . . . . . . . Triggered . | . . . . . . . . . . Disarmed . | . . . . . . . . . . Reprogrammed . | . . . . . . . . . . Reused . | . . . . . . . . . . Traps Extracted . | . . . . . . . . . . Installed . | . . . . . . . . . . Triggered . | . . . . . . . . . . Machines | -11 -10 -10 -10 -9 -8 -7 -6 -5 -4 ---------- Run | Yrd Mat Min Exi Min Mat Fac Fac Fac Fac Machines Disabled 5 | . . . . . . . 4 1 . Max in Single Turn 1 | . . . . . . . 1 1 . Machines Repaired . | . . . . . . . . . . Machines Dismantled . | . . . . . . . . . . Machines Sabotaged . | . . . . . . . . . . Overloaded Fab Kills . | . . . . . . . . . . Hacking | -11 -10 -10 -10 -9 -8 -7 -6 -5 -4 --------- Run | Yrd Mat Min Exi Min Mat Fac Fac Fac Fac Machines Accessed 10 | . 5 . 1 . 1 1 1 1 . Terminals 5 | . 4 . . . . . . 1 . Fabricators . | . . . . . . . . . . Repair Stations 4 | . 1 . . . 1 1 1 . . Recycling Units . | . . . . . . . . . . Scanalyzers . | . . . . . . . . . . Garrison Access . | . . . . . . . . . . Total Hacks 30 | . 17 . 1 . 2 2 4 4 . Successful 20 | . 10 . 1 . 2 2 2 3 . Failed 10 | . 7 . . . . . 2 1 . Catastrophic 2 | . 1 . . . . . . 1 . Database Lockouts . | . . . . . . . . . . Manual 12 | . 8 . 1 . . . . 3 . Terminals 14 | . 10 . . . . . . 4 . Fabricators . | . . . . . . . . . . Repair Stations 15 | . 7 . . . 2 2 4 . . Recycling Units . | . . . . . . . . . . Scanalyzers . | . . . . . . . . . . Garrison Access . | . . . . . . . . . . Terminal Hacks 5 | . 2 . 1 . . . . 2 . Record 1 | . . . . . . . . 1 . Prototype ID Bank 1 | . 1 . . . . . . . . Branch Access Points 1 | . . . . . . . . 1 . Emergency Access Points 1 | . 1 . . . . . . . . Proto ID Catalog 1 | . . . 1 . . . . . . Fabricator Hacks . | . . . . . . . . . . Repair Station Hacks 12 | . 6 . . . 2 2 2 . . Scan Component 6 | . 3 . . . 1 1 1 . . Repair 6 | . 3 . . . 1 1 1 . . Recycling Unit Hacks . | . . . . . . . . . . Scanalyzer . | . . . . . . . . . . Garrison Access Hacks . | . . . . . . . . . . Unauthorized Hacks 3 | . 2 . . . . . . 1 . Terminals 3 | . 2 . . . . . . 1 . Botnet 3 | . 2 . . . . . . 1 . Fabricators . | . . . . . . . . . . Repair Stations . | . . . . . . . . . . Recycling Units . | . . . . . . . . . . Scanalyzers . | . . . . . . . . . . Garrison Access . | . . . . . . . . . . Data Cores Recovered . | . . . . . . . . . . Used . | . . . . . . . . . . Hacking Detections 7 | . 4 . . . 1 1 . 1 . Full Trace Events 1 | . . . . . . . . 1 . Feedback Events . | . . . . . . . . . . Feedback Blocked . | . . . . . . . . . . Robot Schematics Acquired . | . . . . . . . . . . Robots Built . | . . . . . . . . . . Authchips . | . . . . . . . . . . Time . | . . . . . . . . . . Total Robot Build Rating . | . . . . . . . . . . Part Schematics Acquired . | . . . . . . . . . . Parts Built . | . . . . . . . . . . Authchips . | . . . . . . . . . . Time . | . . . . . . . . . . Total Part Build Rating . | . . . . . . . . . . Part Studies Acquired . | . . . . . . . . . . Parts Repaired 6 | . 3 . . . 1 1 1 . . Time 174 | . 78 . . . 26 26 44 . . Parts Recycled . | . . . . . . . . . . Recycled Matter . | . . . . . . . . . . Retrieved Matter . | . . . . . . . . . . Retrieved Components . | . . . . . . . . . . Parts Scanalyzed . | . . . . . . . . . . Part Schematics Acquired . | . . . . . . . . . . Parts Damaged . | . . . . . . . . . . Bothacking | -11 -10 -10 -10 -9 -8 -7 -6 -5 -4 ------------ Run | Yrd Mat Min Exi Min Mat Fac Fac Fac Fac Used RIF Installer . | . . . . . . . . . . Robots Hacked . | . . . . . . . . . . Non-combat . | . . . . . . . . . . Combat . | . . . . . . . . . . Robot Hacks Applied . | . . . . . . . . . . Relay Couplers Released . | . . . . . . . . . . Fabnet Peak Effective % . | . . . . . . . . . . Robots Rewired . | . . . . . . . . . . Allies Hacked . | . . . . . . . . . . Hacks Repelled . | . . . . . . . . . . Allies | -11 -10 -10 -10 -9 -8 -7 -6 -5 -4 -------- Run | Yrd Mat Min Exi Min Mat Fac Fac Fac Fac Total Allies 2 | . . . . 2 . . . . . Largest Group 2 | . . . . 2 . . . . . Highest-Rated Group 50 | . . . . 50 . . . . . Highest-Rated Ally 31 | . . . . 31 . . . . . Total Orders . | . . . . . . . . . . Ally Attacks 32 | . . . . 4 . . . 28 . Total Damage 1705 | . . . . 84 . . . 1621 . Kills 5 | . . . . . . . . 5 . Allies Corrupted 2 | . . . . . . . . 2 . Allies Melted . | . . . . . . . . . . Turrets Deployed 3 | . . . . . . . . 3 . Intel | -11 -10 -10 -10 -9 -8 -7 -6 -5 -4 ------- Run | Yrd Mat Min Exi Min Mat Fac Fac Fac Fac Active Infowar (turns) 4363 | 27 1723 65 422 423 215 371 984 133 . Terrain 2108 | . . . . 405 215 371 984 133 . Seismic 2255 | 27 1723 65 422 18 . . . . . Robot Analysis Total . | . . . . . . . . . . Derelict Logs Recovered 1 | . . . . 1 . . . . . Drone Launches . | . . . . . . . . . . Drone Recoveries . | . . . . . . . . . . Exploration | -11 -10 -10 -10 -9 -8 -7 -6 -5 -4 ------------- Run | Yrd Mat Min Exi Min Mat Fac Fac Fac Fac Turns Passed 5690 | 269 1741 65 422 466 217 371 984 953 202 Spaces Moved 3259 | 152 736 35 219 216 128 272 615 638 248 Core 509 | 2 . . . . . . . 259 248 Treads . | . . . . . . . . . . Legs 2750 | 150 736 35 219 216 128 272 615 379 . Wheels . | . . . . . . . . . . Hover . | . . . . . . . . . . Flight . | . . . . . . . . . . Fastest Speed 50 | 50 120 190 190 190 120 120 122 50 50 Average Speed 140 | 119 186 190 190 190 122 120 124 109 68 Slowest Speed 500 | 120 260 190 190 190 190 122 126 500 250 Overloaded Moves . | . . . . . . . . . . Propulsion Burnouts . | . . . . . . . . . . Robots Hopped . | . . . . . . . . . . Potential Cave-ins . | . . . . . . . . . . Cave-ins Triggered . | . . . . . . . . . . Exploration Rate (%) 27 | 5 98 8 59 47 13 5 19 13 10 Regions Visited 9 Branch Regions 3 Pre-discovered Areas . | . . . . . . . . . . Known Exits Taken . | . . . . . . . . . . Unknown Exits Taken 9 | 1 1 1 1 1 1 1 1 1 . Scrap Searched . | . . . . . . . . . . Spaces Dug 16 | . 5 . . . 1 . 10 . . Terrain Destroyed 90 | . 5 . . . 1 . 82 2 . Melee 16 | . 5 . . . 1 . 10 . . Projectile 1 | . . . . . . . . 1 . AOE 72 | . . . . . . . 72 . . Terrain Rammed . | . . . . . . . . . . Walls Destroyed . | . . . . . . . . . . Machines Disabled . | . . . . . . . . . . Actions | -11 -10 -10 -10 -9 -8 -7 -6 -5 -4 --------- Run | Yrd Mat Min Exi Min Mat Fac Fac Fac Fac Total 4043 | 188 1001 34 227 251 173 315 747 828 279 Wait 457 | . 174 . . 14 28 26 78 124 13 Move 3250 | 151 735 34 218 215 127 271 614 637 248 Hop . | . . . . . . . . . . Pick Up 35 | 6 13 . 4 . 2 5 2 3 . Fast Attach 30 | 7 2 . . 1 3 3 2 9 3 Attach 18 | . 1 . . 1 4 2 3 7 . Detach 3 | . . . . . . 1 1 . 1 Swap 26 | . 13 . 1 3 2 1 6 . . Drop 26 | . 10 . 4 . . 5 1 6 . Fire 164 | 24 46 . . 17 6 . 29 42 . Melee 20 | . 7 . . . 1 1 11 . . Ram 14 | . . . . . . . . . 14 Kick . | . . . . . . . . . . Crush . | . . . . . . . . . . Escape Stasis . | . . . . . . . . . . Rewire . | . . . . . . . . . . Trap . | . . . . . . . . . . Miscellaneous . | . . . . . . . . . . Route ------- -11/Scrapyard -10/Materials (discovered 4 exits: [*Mat x3] / [*Min]) -10/Mines -10/Exiles -9/Mines -8/Materials -7/Factory -6/Factory -5/Factory (discovered 5 exits: [*Fac] / Upp x2 / Ext x2) -4/Factory (discovered 1 exit: [*Res]) History --------- Turn | Location | Event 5 | -11/Scrapyard | Discovered new exit (range 16) 270 | -11/Scrapyard | Entered Materials 309 | -10/Materials | Build established: Mutant 764 | -10/Materials | Repaired Aluminum Leg 791 | -10/Materials | Repaired Ion Engine 874 | -10/Materials | Discovered new exit (range 6) 977 | -10/Materials | Build established: Scavenger-Mutant 1027 | -10/Materials | Core integrity fell below 50% 1149 | -10/Materials | Repaired Aluminum Leg 1299 | -10/Materials | Discovered new exit (range 6) 1576 | -10/Materials | Discovered new exit (range 14) 1903 | -10/Materials | Discovered new exit (range 8) 2011 | -10/Materials | Entered Mines 2067 | -10/Mines | Deemed a non-threat by the Exiles lab entrance 2068 | -10/Mines | Discovered new exit (range 5) 2076 | -10/Mines | Entered Exiles 2122 | -10/Exiles | Met 8R-AWN 2151 | -10/Exiles | Met EX-HEX 2209 | -10/Exiles | Met EX-BIN 2232 | -10/Exiles | Aligned with FarCom system 2234 | -10/Exiles | Given EX-Vault access code 2249 | -10/Exiles | Build established: Mutant 2282 | -10/Exiles | Opened EX-Vault 2318 | -10/Exiles | Found Deploy-a-Sentry 2321 | -10/Exiles | Found Deploy-a-Sentry 2324 | -10/Exiles | Found Deploy-a-Sentry 2359 | -10/Exiles | Warned to stay clear of 0b10 Research branches 2366 | -10/Exiles | Exiles lab attacked by MAIN.C 2483 | -10/Exiles | Discovered new exit (range 10) 2498 | -10/Exiles | Left Exiles lab with Deploy-a-Sentry 2498 | -10/Exiles | Entered Mines 2621 | -9/Mines | Core integrity fell below 20% 2823 | -9/Mines | Discovered new exit (range 7) 2852 | -9/Mines | Learned Materials emergency access door positions 2883 | -9/Mines | Assembled infested the area 2888 | -9/Mines | Assisted by a Guerilla fighting off Assembled 2964 | -9/Mines | Entered Materials 2964 | -8/Materials | Evolved 4 slots: Propulsion x2, Utility x2 3056 | -8/Materials | Repaired Lgt. Cannon 3166 | -8/Materials | Discovered new exit (range 12) 3181 | -8/Materials | Entered Factory 3181 | -7/Factory | Evolved 2 slots: Power x1, Propulsion x1 3326 | -7/Factory | Discovered new exit (range 14) 3418 | -7/Factory | Repaired Aluminum Leg 3439 | -7/Factory | Build established: Scavenger-Assassin 3552 | -7/Factory | Entered another Factory area 3552 | -6/Factory | Evolved 2 slots: Utility x1, Weapon x1 3741 | -6/Factory | Repaired Arc Projector 3900 | -6/Factory | Discovered new exit (range 9) 4518 | -6/Factory | Build established: Assassin 4536 | -6/Factory | Entered another Factory area 4536 | -5/Factory | Evolved 2 slots: Utility x1, Weapon x1 4608 | -5/Factory | Identified exit to Upper Caves 4608 | -5/Factory | Identified exit to Extension 4709 | -5/Factory | Lost 3 parts (2u1w) 4960 | -5/Factory | Build established: Skirmisher 5027 | -5/Factory | System corruption reached 10% 5055 | -5/Factory | Released all parts (4) 5080 | -5/Factory | Lost 9 parts (2p4n3w) 5263 | -5/Factory | Build established: Mutant 5387 | -5/Factory | Released all parts (4) 5391 | -5/Factory | DAS Turret deployed 5392 | -5/Factory | Core integrity fell below 50% 5433 | -5/Factory | DAS Turret deployed 5439 | -5/Factory | DAS Turret deployed 5473 | -5/Factory | Spotted B-75 Beast 5483 | -5/Factory | Discovered new exit (range 11) 5489 | -5/Factory | Entered another Factory area 5489 | -4/Factory | Evolved 2 slots: Utility x2 5662 | -4/Factory | Core integrity fell below 50% 5684 | -4/Factory | Core integrity fell below 20% 5686 | -4/Factory | Discovered new exit (range 12) 5691 | -4/Factory | Destroyed by S-27 Virus with Autogun Last Messages --------------- 05622_ Fusion Modulator explodes. 05622_ Slug penetrates Wall. 05622_ W-44 Eye sends out distress signal. 05624_ U-05 Engineer lays Concrete. 05625_ Slug penetrates Earth. 05625_ Penetrated by Slug. 05625_ U-05 Engineer lays Concrete. 05628_ U-05 Engineer builds a Door. 05628_ Penetrated by Slug. 05630_ Acquired Neutrino Core. 05632_ Penetrated by Slug. 05632_ Slug penetrates Wall. 05636_ U-05 Engineer builds a Door. 05639_ Slammed into R-10 Processor. 05659_ Slammed into S-27 Virus. 05661_ Destabilizing: Core damaged (-46). 05661_ Penetrated by Slug. 05662_ Slammed into S-27 Virus. 05686_ EXIT=FOUND 05687_ Knocked back. Map ----- +----------------------------------------------------+ | ?????????????????????????????????????????????????? | | ?????????????????????????????????????????????????? | | ?????????????????????????????????????????????????? | | ?????????????????????????????????????????????????? | | ?????????????????????????????????????????????????? | | ?????????????????????????????????????????????????? | | ?????????????????????????????????????????????????? | | ?????????????????????????????????????????????????? | | ?????????????????????????????????????????????????? | | ?????????????????????????????????????????????????? | | ?????????????????????????????????????????????????? | | ?????????????????????????????????????????????????? | | ?????????????????????????????????????????????????? | | ?????????????????????????????????????????????????? | | ?????????????????????????????????????????????????? | | ?????????????????????????????????????????????????? | | ?????????????????????????????????????????????????? | | ???????????????????????????????? #?????????????? | | ???????????????????????????????# ##????????????? | | ??????????????????????????????# #????????????? | | ??????????????????????????????? #????????????? | | ??????????????????????????????? < #????????????? | | ??????????????????????????????? #????????????? | | ???????????????????????????????? H ????????????## | | ??????????????????###+########### #?????????????# | | ??????????????????# @ #######???????# | | ??????????????????# R # "????# | | ??????????????????+ """ s ????? | | ??????????????????# "Y" #s???????? | | ??????????????????# " " #?#+###### | | ??????????????????# #?# | | ??????????????????# """ #?# | | ??????????????????# """ s #?# | | ????????????????? """ss u ### | | ?????????????????#### s##### t s s # T## | | ????????????????????# """ #???# ####/#### ####? | | ????????????????????# """ ]#???# #? ?# #???? | | ????????????????????# """ #???# ## """ # #?### | | ??????????????????????? #???# ## """ ?# #?#! | | ???????????????????????""" ????# ## """ ?# #?# | | ????????????????????????"" ????# ## # #?# | | ?????????????????????????" ????# ######### #?#! | | ????????????????????????? ????? ????????# #?### | | ?????????????????????????? ?????? ????????# #???? | | ????????????????????????????????? ????????# #???? | | ????????????????????????????????? ????????# #???? | | ????????????????????????????????? ????????# #???? | | ????????????????????????????????? ????????# #???? | | ????????????????????????????????? ???????? ????? | | ?????????????????????????????????????????? ????? | +----------------------------------------------------+ Best States ------------- Heat Dissipation 54 Energy Generation 19 Energy Capacity 400 Matter Stores 401 Matter Capacity 550 Sight Range 16 Terrain Scan Range 16 Terrain Scan Density 210 Armor Coverage 375 Evasion (%) 55 Target Analysis 6 Item Schematics ----------------- None Robot Schematics ------------------ None Fabricated ------------ Nothing Repaired ---------- Aluminum Leg | 32% | -10/Materials Ion Engine | 3% | -10/Materials Aluminum Leg | 21% | -10/Materials Lgt. Cannon | 1% | -8/Materials Aluminum Leg | 20% | -7/Factory Arc Projector | 73% | -6/Factory Studied --------- None Alien Tech Used ----------------- None Achievements -------------- Heavy Suspicion Challenges ------------ None Game ------ Seed ReflectiveStructuralLink Manual? 0 Play Time 01:02:36 Cumulative 66.1 hours Start 2026.08.25 @ 21:43:24 End 2026.09.13 @ 19:07:04 Sessions 5 Manual Loads 0 Difficulty Rogue Special Mode None Game No. 66 Rogue 66 Adventurer 0 Explorer 0 Win Type - Total 0 Types 0/0/0/0/0/0/0/0/0/0 Lore% 31 Gallery% 27 Achievement% 18 Wizard Run 0 Options --------- Layout 0 ASCII 0 Keyboard 1 Movement Numpad Keybinds 0 Fullscreen 2 Font 20/Terminus Map View 97x62 Zoom Use 0% Tactical HUD 1 Map Filters NONE Filters NONE Steam 1 RUN: ad2c71c9-55a5-4e09-8288-677b3c50872f